bitfinex-derivatives/quotes_SOLF0:USTF0_20241021
["timestamp","ask_amount","ask_price","bid_price","bid_amount"]
[1729539147260,4.6,166.39,166.29,3.06049293]
[1729539147448,4.6,166.4,166.29,3.06049293]
[1729539147648,4.6,166.4,166.36,3.0062]
[1729539147649,7.6056,166.4,166.36,3.0062]
[1729539148653,3.0057,166.39,166.36,3.0062]
[1729539150260,7.6056,166.4,166.36,3.0062]
[1729539152554,7.6056,166.4,166.31,4.6]
[1729539152754,7.6056,166.4,166.37,3.006]
[1729539154261,18.04,166.47,166.31,4.6]
[1729539154470,3.0054,166.41,166.38,3.0057]
[1729539154763,3.0054,166.41,166.31,4.6]
[1729539155556,3.0054,166.41,166.37,3.0059]
[1729539156972,7.4590733,166.42,166.3,5.98338889]
[1729539157257,25.4990733,166.42,166.28,7.56968889]
[1729539157461,0.1789,166.41,166.28,7.56968889]
[1729539157853,0.1789,166.41,166.28,6.0663]
[1729539158161,0.1789,166.41,166.28,4.0576]
[1729539158363,1.1789,166.41,166.28,4.0576]
[1729539159262,3.0069,166.33,166.3,3.0073]
[1729539159561,7.4869,166.33,166.3,3.0073]
[1729539160163,4.48,166.33,166.3,3.0073]
[1729539163870,7.4868,166.33,166.3,3.0073]
[1729539164468,7.4868,166.33,166.29,3.0074]
[1729539165272,7.46147261,166.33,166.28,4.0576]
[1729539165469,3.007,166.32,166.28,4.0576]
[1729539165671,7.46147261,166.33,166.28,4.0576]
[1729539165865,3.0072,166.31,166.27,3.0078]
[1729539166272,7.46147261,166.33,166.24,2.1531]
[1729539166569,3.0076,166.29,166.25,3.0081]
[1729539166767,7.4876,166.29,166.25,3.0081]
[1729539166968,4.48,166.29,166.22,1.5039645]
[1729539167176,3.0078,166.28,166.24,3.0083]
[1729539168870,4.48,166.29,166.21,3.9807]
[1729539169476,3.0083,166.25,166.21,6.9896]
[1729539169664,7.4883,166.25,166.21,6.9896]
[1729539170269,4.48,166.25,166.21,3.9807]
[1729539170470,4.48,166.25,166.22,3.0087]
[1729539172070,4.48,166.27,166.21,3.9807]
[1729539172576,4.48,166.27,166.21,5.48509091]
[1729539174172,4.48,166.27,166.21,3.51309091]
[1729539174372,4.48,166.27,166.16,3.54169091]
[1729539174772,3.0084,166.24,166.19,3.0092]
[1729539174975,4.48,166.27,166.19,3.0092]
[1729539175167,4.48,166.27,166.17,1.50439091]
[1729539175364,22.52,166.27,166.16,2.0373]
[1729539175773,0.1808,166.26,166.16,2.0373]
[1729539176177,3.0092,166.2,166.16,5.047]
[1729539176472,7.4892,166.2,166.16,5.047]
[1729539177973,3.0094,166.19,166.15,4.9939]
[1729539178169,3.0094,166.19,166.11,10.04447949]
[1729539178373,3.0094,166.19,166.11,12.11737949]
[1729539178679,3.0094,166.19,166.14,3.0101]
[1729539178870,3.0095,166.18,166.14,3.0101]
[1729539180072,7.4892,166.2,166.11,6.1324]
[1729539180273,4.48,166.19,166.11,6.1324]
[1729539180782,3.0092,166.2,166.11,6.1324]
[1729539181080,4.48,166.26,166.12,1.50498005]
[1729539181284,4.48,166.26,166.13,1.50498005]
[1729539181483,4.48,166.26,166.14,5.98498005]
[1729539181683,4.48,166.26,166.18,3.0094]
[1729539181981,4.48,166.26,166.19,4.1527]
[1729539182478,7.4881,166.26,166.19,4.1527]
[1729539182898,7.4881,166.26,166.21,3.0088]
[1729539183073,7.4882,166.26,166.19,4.1527]
[1729539183276,4.48,166.26,166.19,4.1527]
[1729539183882,4.48,166.26,166.15,2.1672]
[1729539184786,3.0092,166.2,166.16,3.0098]
[1729539184975,7.5092,166.2,166.16,3.0098]
[1729539187187,4.5,166.2,166.15,2.1672]
[1729539187383,4.5,166.2,166.18,3.0095]
[1729539187577,18.04,166.29,166.15,2.1672]
[1729539187776,3.0081,166.26,166.22,3.0087]
[1729539187977,18.2193,166.32,166.22,3.0087]
[1729539188181,4.5,166.31,166.16,4.5]
[1729539188477,3.0081,166.26,166.22,3.0086]
[1729539188673,7.5081,166.26,166.22,3.0086]
[1729539189274,3.0087,166.23,166.19,3.0093]
[1729539189474,4.5,166.26,166.17,2.0288]
[1729539190883,3.0086,166.23,166.19,3.0093]
[1729539194281,3.0086,166.23,166.17,2.0288]
[1729539195089,3.0086,166.23,166.19,3.0092]
[1729539196383,4.5,166.23,166.22,3.0088]
[1729539197789,4.5,166.23,166.17,2.0288]
[1729539198090,4.5,166.23,166.21,3.0089]
[1729539200987,4.5,166.23,166.17,2.0288]
[1729539201990,4.5,166.23,166.19,3.0092]
[1729539202878,7.5087,166.23,166.19,3.0092]
[1729539203691,3.0089,166.22,166.18,3.0094]
[1729539205491,3.0091,166.21,166.17,3.0095]
[1729539209794,4.5,166.23,166.15,2.1672]
[1729539209991,4.5,166.23,166.14,2.1764]
[1729539209992,4.5,166.23,166.12,1.99]
[1729539210198,4.679,166.23,166.12,1.99]
[1729539210592,3.0096,166.18,166.14,3.0101]
[1729539210788,4.5,166.17,166.14,3.0101]
[1729539211897,7.5098,166.17,166.13,3.0103]
[1729539212196,4.5,166.17,166.12,1.99]
[1729539212894,4.5,166.17,166.09,4.0674]
[1729539214100,3.0101,166.15,166.1,3.0108]
[1729539214597,3.0102,166.14,166.1,3.0108]
[1729539216695,3.0103,166.14,166.1,3.0108]
[1729539216896,2.95008117,166.15,166.09,4.0674]
[1729539217105,4.5,166.17,166.08,3.0112]
[1729539217293,3.0105,166.13,166.06,2.0807]
[1729539217594,7.4505,166.13,166.06,2.0807]
[1729539218502,7.4505,166.13,166.09,3.011]
[1729539218995,4.44,166.13,166.06,2.0807]
[1729539219803,7.4504,166.13,166.09,3.011]
[1729539220600,7.4504,166.13,166.1,3.0109]
[1729539221700,3.0106,166.12,166.08,3.0113]
[1729539222302,83.04,166.22,166.06,2.0807]
[1729539222604,4.44,166.21,166.06,2.0807]
[1729539223606,3.0094,166.19,166.15,3.01]
[1729539223804,4.44,166.2,166.08,4.44]
[1729539224202,4.44,166.19,166.16,3.0097]
[1729539224399,4.44,166.19,166.08,4.44]
[1729539224702,4.44,166.19,166.16,3.0097]
[1729539225002,4.44,166.19,166.08,4.44]
[1729539225304,4.44,166.19,166.17,3.0095]
[1729539225804,4.44,166.19,166.08,4.44]
[1729539226009,4.44,166.19,166.18,3.0095]
[1729539226201,3.0088,166.22,166.18,3.0095]
[1729539226408,4.44,166.21,166.18,3.0095]
[1729539226612,65.02,166.28,166.22,3.0086]
[1729539226910,4.44,166.25,166.15,4.44]
[1729539227105,5.98764703,166.24,166.19,3.0092]
[1729539229316,2.97904703,166.24,166.16,2.1274]
[1729539229514,3.0087,166.23,166.18,3.0095]
[1729539229715,6.0416173,166.23,166.18,3.0095]
[1729539233719,4.44,166.25,166.16,2.1274]
[1729539233919,4.44,166.25,166.2,3.009]
[1729539234123,2.98754004,166.24,166.2,3.009]
[1729539234824,5.99594004,166.24,166.2,3.009]
[1729539241025,2.98754004,166.24,166.17,1.50485779]
[1729539241322,4.44,166.25,166.17,1.50485779]
[1729539241529,4.44,166.25,166.16,2.1274]
[1729539241823,4.44,166.25,166.17,3.0096]
[1729539241824,3.0091,166.21,166.17,3.0096]
[1729539242031,7.39125198,166.21,166.16,2.1274]
[1729539242326,15.0164,166.53,166.21,3.0089]
[1729539242327,4.44,166.25,166.21,3.0089]
[1729539242518,4.44,166.25,166.17,1.50485779]
[1729539242519,4.44,166.28,166.18,3.58845779]
[1729539242726,4.44,166.28,166.19,3.54815779]
[1729539242926,4.44,166.28,166.24,3.0083]
[1729539242927,7.4478,166.28,166.24,3.0083]
[1729539243325,7.4478,166.28,166.2,1.50485779]
[1729539243520,4.44,166.28,166.21,1.50485779]
[1729539243729,6.0133,166.34,166.2,1.50485779]
[1729539243933,4.44,166.32,166.2,1.50485779]
[1729539244124,3.0076,166.29,166.24,3.0083]
[1729539244326,4.44,166.28,166.24,3.0083]
[1729539244832,3.0079,166.27,166.24,3.0083]
[1729539245126,5.96198326,166.27,166.24,3.0083]
[1729539248633,3.0083,166.25,166.23,3.0086]
[1729539248838,2.95408326,166.27,166.23,3.0086]
[1729539249536,3.0081,166.26,166.24,3.0084]
[1729539250030,2.95408326,166.27,166.19,3.54804542]
[1729539250228,4.44,166.28,166.19,2.0433]
[1729539250935,7.45185307,166.28,166.19,2.0433]
[1729539251538,7.45185307,166.28,166.19,3.54804542]
[1729539251732,3.0081,166.26,166.23,3.0084]
[1729539252337,7.45185307,166.28,166.19,3.54804542]
[1729539252536,3.0079,166.27,166.24,3.0083]
[1729539252733,7.45185307,166.28,166.19,3.54804542]
[1729539252933,7.45185307,166.28,166.2,1.50474542]
[1729539253137,3.0079,166.27,166.2,1.50474542]
[1729539253744,3.0079,166.27,166.23,3.0085]
[1729539254033,10.45965307,166.28,166.2,1.50474542]
[1729539254240,18.04,166.35,166.27,3.0078]
[1729539254435,4.44,166.34,166.27,3.0078]
[1729539255445,3.01558374,166.35,166.29,3.0075]
[1729539255744,4.44,166.34,166.24,4.44]
[1729539255942,4.44,166.34,166.25,3.5445879]
[1729539256141,4.44,166.34,166.26,1.5044879]
[1729539256342,4.44,166.34,166.27,2.0329]
[1729539256744,4.44,166.34,166.3,3.0072]
[1729539258040,4.44,166.34,166.27,2.0329]
[1729539259441,4.44,166.34,166.31,3.007]
[1729539261239,4.44,166.34,166.27,2.0329]
[1729539262045,4.44,166.34,166.31,3.007]
[1729539264443,4.44,166.34,166.27,2.0329]
[1729539264643,3.0072,166.31,166.27,5.0407]
[1729539265243,3.0073,166.31,166.27,2.0329]
[1729539266348,4.44,166.34,166.27,2.0329]
[1729539266647,3.007,166.32,166.28,3.0076]
[1729539271351,3.0068,166.33,166.28,3.0076]
[1729539272842,3.007,166.32,166.28,3.0076]
[1729539273048,3.007,166.32,166.29,3.0075]
[1729539274546,4.44,166.34,166.29,3.0075]
[1729539274754,3.0068,166.33,166.27,2.0329]
[1729539275756,4.44,166.34,166.27,2.0329]
[1729539276452,3.0068,166.33,166.29,3.0074]
[1729539277154,3.0071,166.32,166.29,3.0075]
[1729539277752,3.0069,166.33,166.29,3.0075]
[1729539278749,7.4466,166.34,166.29,3.0075]
[1729539278954,7.4466,166.34,166.27,2.0329]
[1729539279756,7.4466,166.34,166.3,3.0072]
[1729539280355,3.0068,166.33,166.3,3.0072]
[1729539281058,3.0068,166.33,166.27,2.0329]
[1729539281257,3.0068,166.33,166.29,3.0074]
[1729539288965,3.0068,166.33,166.3,3.0073]
[1729539289166,4.44,166.34,166.27,2.0329]
[1729539289765,4.44,166.34,166.3,3.0072]
[1729539290359,3.0068,166.33,166.3,3.0072]
[1729539290764,7.4468,166.33,166.3,3.0072]
[1729539293066,4.44,166.33,166.27,2.0329]
[1729539293369,3.0071,166.32,166.27,2.0329]
[1729539293569,4.44,166.33,166.27,2.0329]
[1729539293768,7.4469,166.33,166.29,3.0074]
[1729539294576,4.44,166.33,166.27,2.0329]
[1729539294870,3.0071,166.32,166.28,3.0076]
[1729539295470,3.0071,166.32,166.29,3.0075]
[1729539301577,4.44,166.33,166.24,1.50414069]
[1729539301783,4.44,166.33,166.26,3.0079]
[1729539301982,22.48,166.33,166.23,2.1752]
[1729539302180,22.48,166.33,166.22,3.0088]
[1729539302883,22.48,166.33,166.19,2.0612]
[1729539303182,3.0081,166.26,166.23,3.0085]
[1729539303384,4.44,166.25,166.23,3.0085]
[1729539303987,7.44066016,166.25,166.23,3.0085]
[1729539306083,7.44066016,166.25,166.22,3.0087]
[1729539308284,7.44066016,166.25,166.19,2.0612]
[1729539308485,10.44896016,166.25,166.21,3.0088]
[1729539308785,7.44066016,166.25,166.15,4.2846]
[1729539308989,7.44066016,166.25,166.15,6.3274]
[1729539309688,7.44066016,166.25,166.18,3.0095]
[1729539309891,7.44066016,166.25,166.15,6.3274]
[1729539310184,7.44066016,166.25,166.16,1.5049124]
[1729539310795,3.0089,166.22,166.18,3.0094]
[1729539310991,4.44,166.21,166.18,3.0094]
[1729539314994,4.44,166.21,166.15,7.8323124]
[1729539315296,4.44,166.21,166.15,6.3274]
[1729539315591,4.44,166.21,166.2,3.0091]
[1729539315791,4.44,166.23,166.16,1.5049124]
[1729539316087,64.96,166.29,166.17,1.5049124]
[1729539316288,4.44,166.28,166.25,3.0082]
[1729539316490,4.44,166.28,166.19,1.5049124]
[1729539316791,4.44,166.28,166.17,1.5049124]
[1729539316985,7.4478,166.28,166.23,3.0084]
[1729539317787,4.44,166.28,166.18,1.5049124]
[1729539317989,3.008,166.27,166.17,4.44]
[1729539318195,3.03888226,166.26,166.19,1.50457064]
[1729539318485,4.44,166.28,166.19,1.50457064]
[1729539318686,3.0081,166.26,166.21,3.0089]
[1729539318892,3.00673774,166.25,166.21,3.0089]
[1729539319593,3.0083,166.25,166.21,3.0089]
[1729539319892,3.05247674,166.24,166.21,3.0089]
[1729539320288,7.49247674,166.24,166.21,3.0089]
[1729539322391,10.50087674,166.24,166.18,1.50462464]
[1729539322791,10.50087674,166.24,166.16,1.50462464]
[1729539322993,10.50087674,166.24,166.17,1.50462464]
[1729539323293,10.50087674,166.24,166.2,3.009]
[1729539323695,7.49247674,166.24,166.21,3.0088]
[1729539323993,7.49247674,166.24,166.17,1.50462464]
[1729539324291,7.49247674,166.24,166.21,3.0089]
[1729539330699,7.49247674,166.24,166.17,1.50472384]
[1729539330700,3.0088,166.22,166.19,3.0093]
[1729539330893,7.49247674,166.24,166.15,6.3274]
[1729539331094,7.49247674,166.24,166.15,7.83212384]
[1729539331293,3.0087,166.23,166.18,3.0094]
[1729539331494,3.0087,166.23,166.15,7.83212384]
[1729539332401,3.0087,166.23,166.19,3.0092]
[1729539332889,3.0087,166.23,166.2,3.0091]
[1729539333690,3.0087,166.23,166.15,7.83227961]
[1729539333891,3.0087,166.23,166.19,3.0092]
[1729539334098,3.0087,166.23,166.15,6.3274]
[1729539334099,3.0092,166.2,166.15,1.50487961]
[1729539334404,4.44,166.19,166.12,4.3248]
[1729539335195,4.44,166.19,166.12,5.82967961]
[1729539335401,4.44,166.19,166.12,4.3248]
[1729539335715,4.44,166.19,166.16,3.0097]
[1729539336805,4.44,166.21,166.13,3.66216857]
[1729539337304,4.44,166.21,166.18,3.0093]
[1729539339112,4.44,166.21,166.19,3.0093]
[1729539339603,4.44,166.21,166.2,3.0091]
[1729539339900,4.44,166.24,166.15,1.50486238]
[1729539340100,4.44,166.26,166.25,3.0081]
[1729539340905,4.44,166.28,166.25,3.0081]
[1729539341205,4.44,166.29,166.26,3.008]
[1729539341607,4.44,166.29,166.2,6.4191]
[1729539341811,4.44,166.29,166.2,7.92396238]
[1729539342002,4.44,166.29,166.2,6.4191]
[1729539342204,4.44,166.29,166.26,3.0079]
[1729539346116,4.44,166.29,166.2,6.4191]
[1729539346117,4.44,166.29,166.2,3.48396238]
[1729539346308,4.44,166.29,166.2,1.9791]
[1729539346910,22.5,166.29,166.18,3.9961]
[1729539347317,3.0085,166.24,166.19,3.0092]
[1729539347619,7.41093792,166.23,166.19,3.0092]
[1729539347820,4.44,166.23,166.19,3.0092]
[1729539349519,4.44,166.23,166.2,3.0091]
[1729539355121,4.44,166.23,166.18,3.9961]
[1729539355315,7.4486,166.23,166.19,3.0092]
[1729539355714,3.0091,166.21,166.17,4.51448977]
[1729539355915,3.0091,166.21,166.17,3.0097]
[1729539356123,4.44,166.23,166.14,2.0132]
[1729539356513,4.44,166.23,166.16,3.0098]
[1729539357311,4.44,166.23,166.14,2.0132]
[1729539357512,4.44,166.23,166.15,3.01]
[1729539358022,3.0095,166.19,166.15,3.01]
[1729539358225,7.4495,166.19,166.15,3.01]
[1729539359923,4.44,166.19,166.17,3.0097]
[1729539360926,4.44,166.19,166.16,3.0098]
[1729539365228,4.44,166.19,166.14,1.50509587]
[1729539365430,4.44,166.19,166.12,1.50509587]
[1729539365635,4.44,166.19,166.11,1.50509587]
[1729539365927,4.44,166.19,166.12,1.50509587]
[1729539366126,4.44,166.19,166.13,1.50509587]
[1729539366327,3.0097,166.17,166.13,3.0103]
[1729539367220,3.0097,166.17,166.13,4.51560071]
[1729539367427,7.4494,166.19,166.15,3.01]
[1729539370531,7.4493,166.19,166.13,1.50519815]
[1729539370728,4.44,166.19,166.14,1.5051835]
[1729539370929,4.44,166.19,166.12,1.5051835]
[1729539371129,4.44,166.19,166.17,3.0096]
[1729539373731,4.44,166.19,166.12,1.5051835]
[1729539373932,4.44,166.19,166.13,1.5051835]
[1729539374128,4.44,166.19,166.14,1.5051835]
[1729539374335,4.44,166.19,166.15,1.50507168]
[1729539374533,4.44,166.19,166.12,1.50507168]
[1729539374728,4.44,166.19,166.13,1.50507168]
[1729539374933,4.44,166.19,166.14,1.50507168]
[1729539375134,4.44,166.19,166.15,1.50507168]
[1729539375337,4.44,166.19,166.16,1.50507168]
[1729539375537,4.44,166.19,166.12,1.50507168]
[1729539375735,4.44,166.19,166.13,1.50507168]
[1729539375936,4.44,166.19,166.14,1.50507168]
[1729539376139,4.44,166.19,166.15,1.50507168]
[1729539376339,4.44,166.19,166.17,3.0096]
[1729539376539,3.02689901,166.24,166.12,1.50507168]
[1729539376836,3.02689901,166.24,166.11,4.44]
[1729539376837,4.44,166.23,166.13,1.50507168]
[1729539377042,4.44,166.23,166.19,3.0092]
[1729539377536,4.44,166.23,166.15,5.94507168]
[1729539377537,2.94985562,166.24,166.16,1.50507168]
[1729539377733,4.44,166.24,166.17,1.50507168]
[1729539377939,4.44,166.24,166.18,1.50464008]
[1729539378136,4.44,166.24,166.19,1.50464008]
[1729539378334,4.44,166.24,166.2,1.50464008]
[1729539378537,4.44,166.24,166.17,1.50464008]
[1729539378744,4.44,166.24,166.18,1.50464008]
[1729539378944,138.5860493,166.3,166.22,3.0087]
[1729539379142,3.008,166.27,166.22,3.0087]
[1729539380245,3.008,166.27,166.23,3.0086]
[1729539381443,4.44,166.29,166.17,1.50457983]
[1729539381653,7.4478,166.28,166.24,3.0083]
[1729539383444,4.44,166.28,166.2,1.50457983]
[1729539383740,3.0085,166.24,166.2,3.009]
[1729539383943,10.52979468,166.24,166.2,3.009]
[1729539384851,7.4485,166.24,166.2,3.009]
[1729539385245,4.44,166.24,166.18,1.50471956]
[1729539385649,138.5860493,166.3,166.19,1.50471956]
[1729539385650,4.44,166.27,166.19,1.50471956]
[1729539385949,7.448,166.27,166.23,3.0086]
[1729539387546,4.44,166.27,166.23,3.0086]
[1729539387752,4.44,166.27,166.24,3.0084]
[1729539389746,4.44,166.27,166.21,1.50471956]
[1729539389946,5.98701989,166.26,166.22,3.0087]
[1729539395450,2.97881989,166.26,166.2,1.50455725]
[1729539395654,2.97881989,166.26,166.22,3.0086]
[1729539399160,5.98691989,166.26,166.22,3.0086]
[1729539399755,2.97881989,166.26,166.23,3.0085]
[1729539400352,2.97881989,166.26,166.19,1.50460131]
[1729539400559,5.98691989,166.26,166.22,3.0087]
[1729539405561,7.4479,166.27,166.23,3.0085]
[1729539411169,7.4479,166.27,166.24,3.0084]
[1729539411465,2.97978005,166.26,166.18,1.50461014]
[1729539411670,5.98788005,166.26,166.22,3.0086]
[1729539422379,2.97978005,166.26,166.2,1.50464568]
[1729539422569,2.97978005,166.26,166.23,3.0085]
[1729539422768,2.97978005,166.26,166.19,1.50464568]
[1729539422970,2.97978005,166.26,166.2,1.50464568]
[1729539423270,2.97978005,166.26,166.18,1.50464568]
[1729539423467,2.97978005,166.26,166.19,1.50464568]
[1729539423674,2.97978005,166.26,166.2,1.50464568]
[1729539423880,5.98788005,166.26,166.22,3.0087]
[1729539427274,120.5260493,166.3,166.2,1.50464561]
[1729539427469,123.5334493,166.3,166.21,1.50464561]
[1729539427679,4.42,166.3,166.22,7.51684561]
[1729539427871,4.42,166.3,166.22,6.0122]
[1729539428074,7.4274,166.3,166.25,3.008]
[1729539428269,7.4274,166.3,166.23,1.50431942]
[1729539428480,7.4274,166.3,166.24,3.00861489]
[1729539428677,7.4274,166.3,166.22,6.0122]
[1729539428873,7.4274,166.3,166.23,3.00858772]
[1729539429076,7.4274,166.3,166.24,3.00858772]
[1729539429277,7.4274,166.3,166.25,1.50429386]
[1729539429477,7.4274,166.3,166.24,3.00858772]
[1729539429678,7.4274,166.3,166.25,1.50429386]
[1729539429981,7.4274,166.3,166.26,3.008]
[1729539431178,4.42,166.3,166.23,1.50429386]
[1729539431476,7.4271,166.32,166.28,3.0076]
[1729539431881,67.97004852,166.35,166.24,1.50418369]
[1729539432177,4.42,166.34,166.25,5.92418369]
[1729539432382,4.42,166.34,166.26,1.50418369]
[1729539432574,7.4266,166.34,166.29,3.0073]
[1729539432771,7.4266,166.34,166.26,1.50418369]
[1729539434177,4.42,166.34,166.26,1.50418369]
[1729539434378,4.42,166.34,166.25,3.0081]
[1729539434876,3.0075,166.3,166.25,3.0081]
[1729539435071,7.4275,166.3,166.25,3.0081]
[1729539435478,7.4275,166.3,166.26,3.0079]
[1729539436083,4.42,166.3,166.23,1.50424025]
[1729539436283,4.42,166.3,166.22,10.4322]
[1729539436487,4.42,166.33,166.23,1.50419276]
[1729539436684,4.42,166.33,166.24,1.50419276]
[1729539436886,4.42,166.33,166.3,3.0072]
[1729539439477,4.42,166.33,166.25,1.50417408]
[1729539439681,4.42,166.33,166.26,1.50417408]
[1729539439883,2.97004852,166.35,166.26,1.50417408]
[1729539439884,2.97004852,166.35,166.32,3.0069]
[1729539440077,7.4264,166.36,166.32,3.0069]
[1729539440986,3.0064,166.36,166.32,3.0069]
[1729539441186,4.42,166.37,166.33,3.0066]
[1729539441491,4.42,166.38,166.3,4.42]
[1729539441676,4.42,166.38,166.31,1.50417408]
[1729539442186,4.42,166.38,166.33,3.0068]
[1729539442187,7.4259,166.38,166.33,3.0068]
[1729539442378,7.4259,166.38,166.31,1.50375369]
[1729539442778,68.01923355,166.44,166.31,1.50375369]
[1729539442987,4.42,166.43,166.31,1.50375369]
[1729539443286,4.42,166.43,166.32,1.50375369]
[1729539443481,3.0054,166.41,166.36,3.0061]
[1729539444887,3.0054,166.41,166.37,3.006]
[1729539445589,4.42,166.43,166.37,3.006]
[1729539445790,3.0053,166.42,166.37,3.006]
[1729539446292,3.0052,166.42,166.37,3.006]
[1729539450090,3.0052,166.42,166.38,3.0058]
[1729539451193,3.0054,166.41,166.37,3.006]
[1729539452393,3.0058,166.39,166.35,3.0063]
[1729539452690,4.42,166.39,166.34,1.9717]
[1729539452886,3.006,166.38,166.34,4.9782]
[1729539453190,4.42,166.39,166.3,4.42]
[1729539453386,4.42,166.39,166.3,6.3917]
[1729539453693,4.42,166.39,166.3,1.9717]
[1729539454494,3.0062,166.37,166.3,4.979]
[1729539454795,4.42,166.39,166.3,4.979]
[1729539455195,3.0066,166.34,166.3,4.979]
[1729539455390,3.0066,166.34,166.3,1.9717]
[1729539455993,4.42,166.36,166.32,3.0068]
[1729539456194,4.42,166.37,166.32,3.0068]
[1729539456889,7.4262,166.37,166.32,3.0068]
[1729539458595,7.4262,166.37,166.33,3.0068]
[1729539460794,4.42,166.37,166.33,3.0068]
[1729539462595,4.42,166.37,166.3,1.9717]
[1729539462799,4.42,166.37,166.34,3.0066]
[1729539466303,3.006,166.38,166.34,3.0066]
[1729539466503,4.42,166.37,166.34,3.0066]
[1729539467999,68.01923355,166.44,166.3,1.9717]
[1729539468202,68.01923355,166.44,166.31,4.42]
[1729539468402,4.42,166.43,166.31,4.42]
[1729539468806,7.425,166.43,166.32,6.0139]
[1729539469006,4.42,166.42,166.32,6.0139]
[1729539470513,4.42,166.42,166.39,3.0056]
[1729539471106,4.42,166.42,166.4,3.0054]
[1729539471308,4.42,166.42,166.31,4.42]
[1729539471507,4.42,166.42,166.41,3.0053]
[1729539472007,10.36508581,166.47,166.38,3.0058]
[1729539472207,4.42,166.47,166.39,6.4361]
[1729539474504,4.42,166.47,166.43,3.0048]
[1729539475614,4.42,166.47,166.39,6.4361]
[1729539475910,6.00169371,166.48,166.44,3.0048]
[1729539476311,7.4238,166.5,166.45,3.0045]
[1729539477007,6.03801797,166.52,166.47,3.0041]
[1729539477210,3.0034,166.52,166.43,4.42]
[1729539477417,3.0034,166.52,166.44,3.828]
[1729539478019,7.34963455,166.53,166.47,3.0041]
[1729539478216,10.35293455,166.53,166.44,3.828]
[1729539478807,3.0037,166.5,166.46,3.0044]
[1729539479119,7.34963455,166.53,166.46,3.0044]
[1729539479417,7.34963455,166.53,166.44,3.828]
[1729539479615,7.34963455,166.53,166.44,8.248]
[1729539480119,3.0036,166.51,166.46,3.0044]
[1729539480512,7.34963455,166.53,166.44,8.248]
[1729539480712,3.0037,166.5,166.45,3.0045]
[1729539481421,3.0037,166.5,166.44,8.248]
[1729539481720,3.0036,166.51,166.46,3.0044]
[1729539482516,3.0037,166.5,166.46,3.0044]
[1729539484108,3.0041,166.48,166.44,6.8327]
[1729539484309,3.0041,166.48,166.44,3.828]
[1729539486213,4.42,166.49,166.44,3.828]
[1729539486412,3.0048,166.45,166.4,7.4254]
[1729539486617,3.0048,166.45,166.4,3.0054]
[1729539486917,4.42,166.49,166.39,5.0217]
[1729539487617,3.0049,166.44,166.39,5.0217]
[1729539488023,3.0049,166.44,166.4,3.0055]
[1729539488316,4.42,166.49,166.4,3.0055]
[1729539488517,3.0046,166.45,166.4,3.0055]
[1729539491822,3.0046,166.46,166.42,3.0051]
[1729539492027,3.0046,166.46,166.39,2.0161]
[1729539492625,3.0046,166.46,166.41,3.0052]
[1729539493522,3.0046,166.46,166.39,2.0161]
[1729539493826,3.0046,166.46,166.41,3.0053]
[1729539495226,4.42,166.49,166.41,3.0053]
[1729539495414,3.0047,166.45,166.41,3.0053]
[1729539496622,4.42,166.49,166.41,3.0053]
[1729539496824,3.0045,166.46,166.41,3.0053]
[1729539498428,3.0045,166.46,166.42,3.0051]
[1729539499025,4.42,166.49,166.39,2.0161]